bitfinex-derivatives/quotes_BTCF0:USTF0_20251119
["timestamp","ask_amount","ask_price","bid_price","bid_amount"]
[1763547393403,0.1092402,91600.0,91593.0,0.5161577]
[1763547393404,0.02246,91602.0,91601.0,0.109239]
[1763547393600,0.00219803,91600.0,91598.0,0.1092511]
[1763547393798,0.00219803,91600.0,91594.0,0.1553664]
[1763547393799,0.0577,91595.0,91594.0,0.1553664]
[1763547394108,0.0577,91595.0,91594.0,0.1323864]
[1763547394704,0.0577,91595.0,91594.0,0.1553664]
[1763547395097,0.0577,91595.0,91594.0,0.04611]
[1763547395299,0.1531267,91594.0,91593.0,0.001]
[1763547395605,0.04387,91591.0,91590.0,0.2144613]
[1763547396507,0.04387,91591.0,91590.0,0.2375913]
[1763547397199,0.04387,91591.0,91590.0,0.2605713]
[1763547397502,0.04387,91586.0,91585.0,0.04627379]
[1763547401410,0.02246,91586.0,91585.0,0.04627379]
[1763547401904,0.04387,91586.0,91585.0,0.04627379]
[1763547404911,0.04387,91586.0,91585.0,0.00016379]
[1763547406904,0.06873054,91586.0,91585.0,0.00016379]
[1763547409219,0.06873054,91586.0,91585.0,0.02329379]
[1763547409415,0.04387,91586.0,91585.0,0.04627379]
[1763547410525,0.06872579,91586.0,91585.0,0.00016379]
[1763547412619,0.06872579,91586.0,91585.0,0.04627379]
[1763547413624,0.04606803,91590.0,91589.0,0.1553731]
[1763547413821,0.04950689,91590.0,91589.0,0.1553731]
[1763547414027,0.00219803,91590.0,91589.0,0.1553731]
[1763547414616,0.02465803,91590.0,91589.0,0.1553731]
[1763547414817,0.00219803,91590.0,91589.0,0.1553731]
[1763547415924,0.02465803,91590.0,91589.0,0.1553731]
[1763547416126,0.00219803,91590.0,91589.0,0.1553731]
[1763547416526,0.01383,91602.0,91601.0,0.1092488]
[1763547416724,0.04387,91602.0,91601.0,0.1553588]
[1763547417023,0.06872451,91602.0,91601.0,0.1553588]
[1763547417424,0.00016379,91604.0,91603.0,0.04611]
[1763547417624,0.04748101,91604.0,91603.0,0.04611]
[1763547418226,0.06889101,91604.0,91603.0,0.04611]
[1763547418938,0.07089101,91604.0,91603.0,0.04611]
[1763547421836,0.02702101,91604.0,91603.0,0.04611]
[1763547422138,0.02702101,91604.0,91603.0,0.1553564]
[1763547422139,0.07181101,91604.0,91603.0,0.1553564]
[1763547422331,0.07181101,91604.0,91603.0,0.04611]
[1763547423030,0.07081101,91604.0,91603.0,0.04611]
[1763547423938,0.06981101,91604.0,91603.0,0.04611]
[1763547424134,0.04479,91603.0,91602.0,0.1092475]
[1763547424332,0.06964722,91603.0,91602.0,0.1312075]
[1763547424840,0.06964722,91603.0,91602.0,0.1540575]
[1763547425232,0.04479,91598.0,91597.0,0.1540626]
[1763547425539,0.17889952,91598.0,91597.0,0.04481]
[1763547425739,0.1092567,91595.0,91593.0,0.1540679]
[1763547425932,0.06964722,91594.0,91593.0,0.04481]
[1763547428130,0.06964722,91594.0,91593.0,0.02196]
[1763547428539,0.17890432,91594.0,91593.0,0.1312183]
[1763547430440,0.06964722,91594.0,91593.0,0.1540683]
[1763547430945,0.02485722,91594.0,91593.0,0.1540683]
[1763547431144,0.40575379,91604.0,91603.0,0.1540564]
[1763547431338,0.43064744,91604.0,91603.0,0.02196]
[1763547431830,0.0576,91602.0,91601.0,0.1312076]
[1763547432033,0.08249365,91602.0,91601.0,0.1312076]
[1763547432831,0.08249365,91602.0,91601.0,0.1885176]
[1763547433036,0.08249365,91602.0,91601.0,0.07927]
[1763547433245,0.08249365,91602.0,91601.0,0.10212]
[1763547435240,0.19174125,91602.0,91601.0,0.07927]
[1763547435937,0.19174125,91602.0,91601.0,0.1312088]
[1763547436137,0.19174125,91602.0,91601.0,0.1540588]
[1763547437947,0.04479,91591.0,91590.0,0.1540719]
[1763547438547,0.06969412,91591.0,91590.0,0.1540719]
[1763547440444,0.02490412,91591.0,91590.0,0.1670619]
[1763547440847,0.02490412,91591.0,91590.0,0.5278619]
[1763547441345,0.01281,91620.0,91590.0,0.5278619]
[1763547441346,0.05213717,91614.0,91603.0,0.1540564]
[1763547441547,0.38577663,91604.0,91603.0,0.1540564]
[1763547441749,0.02497663,91604.0,91603.0,0.1540564]
[1763547442060,0.00016379,91604.0,91603.0,0.1540564]
[1763547442246,0.3608,91615.0,91614.0,0.1540433]
[1763547442446,0.38561008,91615.0,91614.0,0.1540433]
[1763547443653,0.38661008,91615.0,91614.0,0.1540433]
[1763547444056,0.38761008,91615.0,91614.0,0.1540433]
[1763547444656,0.40994008,91615.0,91614.0,0.1540433]
[1763547445058,0.43152008,91615.0,91614.0,0.1540433]
[1763547445558,0.04391,91607.0,91606.0,0.14981]
[1763547445858,0.06871139,91607.0,91606.0,0.04461]
[1763547446655,0.06971139,91607.0,91606.0,0.04461]
[1763547447158,0.07071139,91607.0,91606.0,0.04461]
[1763547449248,0.1531528,91606.0,91605.0,0.00016379]
[1763547449447,0.06871139,91606.0,91605.0,0.00016379]
[1763547449652,0.06871139,91606.0,91605.0,0.04477379]
[1763547450464,0.06971139,91606.0,91605.0,0.04477379]
[1763547450660,0.02680139,91606.0,91605.0,0.04477379]
[1763547451662,0.002,91606.0,91605.0,0.04477379]
[1763547452263,0.001,91606.0,91605.0,0.04477379]
[1763547452655,0.04539,91606.0,91605.0,0.04477379]
[1763547453160,0.06918578,91606.0,91605.0,0.04477379]
[1763547455666,0.02479578,91606.0,91605.0,0.04477379]
[1763547456165,0.02386803,91610.0,91609.0,0.04553]
[1763547456366,0.04866247,91610.0,91609.0,0.04553]
[1763547456568,0.04866247,91610.0,91609.0,0.1547692]
[1763547456756,0.07072247,91610.0,91609.0,0.1547692]
[1763547457956,0.109241,91608.0,91606.0,0.1092422]
[1763547458161,0.06852444,91607.0,91606.0,0.1315722]
[1763547458364,0.06852444,91607.0,91606.0,0.1547722]
[1763547459162,0.02479444,91607.0,91606.0,0.1547722]
[1763547459368,0.00219803,91610.0,91609.0,0.1676592]
[1763547459762,0.02690175,91610.0,91609.0,0.1676592]
[1763547463371,0.04857175,91610.0,91609.0,0.1676592]
[1763547464979,0.02690175,91610.0,91609.0,0.1676592]
[1763547465369,0.00219803,91610.0,91609.0,0.1676592]
[1763547466073,0.04592803,91610.0,91609.0,0.1547692]
[1763547466377,0.07063407,91610.0,91609.0,0.1547692]
[1763547466572,0.04857407,91610.0,91609.0,0.1547692]
[1763547466972,0.02690407,91610.0,91609.0,0.1676592]
[1763547467476,0.07063407,91610.0,91609.0,0.1676592]
[1763547468671,0.04857407,91610.0,91609.0,0.1676592]
[1763547469780,0.02690407,91610.0,91609.0,0.1676592]
[1763547471285,0.00067938,91610.0,91609.0,0.1676592]
[1763547471674,0.38247,91615.0,91614.0,0.1547633]
[1763547471979,0.40453,91615.0,91614.0,0.1547633]
[1763547477483,0.04373,91615.0,91614.0,0.1547633]
[1763547477984,0.00016379,91624.0,91623.0,0.1547525]
[1763547478184,0.00016379,91624.0,91623.0,0.2599525]
[1763547478386,9e-08,91624.0,91623.0,0.2599525]
[1763547479280,0.3743,91644.0,91640.0,0.02233]
[1763547479477,0.04373,91631.0,91630.0,0.15296803]
[1763547480486,0.04373,91631.0,91630.0,0.00219803]
[1763547481482,0.04373,91631.0,91630.0,0.02452803]
[1763547481681,0.04373,91631.0,91630.0,0.00219803]
[1763547483491,0.06831776,91631.0,91630.0,0.00219803]
[1763547483679,0.06831776,91631.0,91630.0,0.04710803]
[1763547483880,0.02167,91631.0,91630.0,0.04710803]
[1763547484286,0.04272,91631.0,91630.0,0.04710803]
[1763547487291,0.01650073,91631.0,91630.0,0.06050803]
[1763547487492,0.03806073,91631.0,91630.0,0.06050803]
[1763547488191,0.40341,91635.0,91634.0,0.04491]
[1763547488398,0.04261,91635.0,91634.0,0.1541194]
[1763547491492,0.02156,91635.0,91634.0,0.1541194]
[1763547492286,0.0427737,91640.0,91639.0,0.1541135]
[1763547492492,0.0435022,91640.0,91639.0,0.1541135]
[1763547493692,0.04261,91634.0,91633.0,0.04491]
[1763547494201,0.04261,91634.0,91633.0,0.02284]
[1763547494400,0.04261,91631.0,91630.0,0.13425143]
[1763547494897,0.04261,91631.0,91630.0,0.15632143]
[1763547496797,0.04261,91631.0,91630.0,0.00219803]
[1763547498009,0.04261,91631.0,91630.0,0.04710803]
[1763547499006,0.04261,91631.0,91630.0,0.00219803]
[1763547499192,0.04461,91631.0,91630.0,0.00219803]
[1763547499703,0.04361,91631.0,91630.0,0.00219803]
[1763547499998,0.06712285,91631.0,91630.0,0.00219803]
[1763547502101,0.06712285,91631.0,91630.0,0.02503803]
[1763547502904,0.06712285,91631.0,91630.0,0.04710803]
[1763547504909,0.06712285,91631.0,91630.0,0.00219803]
[1763547505296,0.06712285,91631.0,91630.0,0.02509803]
[1763547505497,0.06712285,91631.0,91630.0,0.04791803]
[1763547505798,0.17633585,91631.0,91630.0,0.04791803]
[1763547506000,0.17633585,91631.0,91630.0,0.00219803]
[1763547506402,0.17633585,91631.0,91623.0,0.07854]
[1763547506403,0.1533913,91624.0,91623.0,0.07854]
[1763547506604,0.42948285,91624.0,91623.0,0.07854]
[1763547506811,0.42948285,91624.0,91621.0,0.109388]
[1763547506812,0.04417,91622.0,91621.0,0.109388]
[1763547507106,0.06868285,91622.0,91621.0,0.109388]
[1763547507905,0.06868285,91622.0,91621.0,0.132288]
[1763547509013,0.06868285,91622.0,91621.0,0.109388]
[1763547509403,0.17388285,91622.0,91621.0,0.0001637]
[1763547509712,0.1092514,91606.0,91601.0,0.04572]
[1763547510009,0.04417,91603.0,91602.0,0.1549751]
[1763547511810,0.04417,91603.0,91602.0,0.1569751]
[1763547513004,0.153424,91603.0,91602.0,0.04772]
[1763547513204,0.153424,91603.0,91602.0,0.0249]
[1763547513399,0.153424,91603.0,91602.0,0.002]
[1763547513604,0.17794826,91603.0,91602.0,0.002]
[1763547514012,0.04355,91601.0,91600.0,0.025]
[1763547514204,0.06807426,91601.0,91600.0,0.025]
[1763547515022,0.04355,91594.0,91593.0,0.0001637]
[1763547515206,0.5136181,91594.0,91593.0,0.0001637]
[1763547515909,0.53811596,91594.0,91593.0,0.0001637]
[1763547517405,0.152824,91589.0,91588.0,0.05566]
[1763547517609,0.1528475,91571.0,91570.0,0.04323]
[1763547517813,0.04355,91567.0,91566.0,0.04350303]
[1763547518012,0.04355,91567.0,91566.0,0.00027303]
[1763547518211,0.05651,91567.0,91566.0,0.10957453]
[1763547518409,0.05651,91567.0,91566.0,0.13086453]
[1763547518718,0.05651,91567.0,91566.0,0.00027303]
[1763547518914,0.16175,91567.0,91566.0,0.00027303]
[1763547520418,0.04355,91558.0,91557.0,0.00016379]
[1763547520615,0.50959,91558.0,91557.0,0.00016379]
[1763547522219,0.38308,91558.0,91557.0,0.04339379]
[1763547522421,0.40435,91558.0,91557.0,0.04339379]
[1763547522820,0.38308,91558.0,91557.0,0.04339379]
[1763547523122,0.40435,91558.0,91557.0,0.04339379]
[1763547524320,0.40435,91558.0,91557.0,0.00016379]
[1763547525019,0.40435,91558.0,91557.0,0.13076569]
[1763547525211,0.40435,91558.0,91557.0,0.15270569]
[1763547525613,0.40435,91558.0,91557.0,0.04339379]
[1763547525813,0.40435,91558.0,91557.0,0.15270569]
[1763547526822,0.50963,91558.0,91557.0,0.15270569]
[1763547527525,0.50963,91558.0,91557.0,0.13076569]
[1763547527723,0.50963,91558.0,91557.0,0.00016379]
[1763547528326,0.04355,91555.0,91554.0,0.00011192]
[1763547529624,0.04355,91555.0,91554.0,0.02140192]
[1763547529924,0.04355,91555.0,91554.0,0.00011192]
[1763547530817,0.1528643,91555.0,91554.0,0.00011192]
[1763547531519,0.04355,91547.0,91546.0,0.04323]
[1763547531717,0.40435,91547.0,91546.0,0.1525551]
[1763547532526,0.40446192,91547.0,91546.0,0.1525551]
[1763547532724,0.40446192,91547.0,91546.0,0.1535551]
[1763547533024,0.40446192,91547.0,91546.0,0.1545551]
[1763547533429,0.40446192,91547.0,91546.0,0.002]
[1763547533924,0.40446192,91547.0,91546.0,0.04523]
[1763547535124,0.40446192,91547.0,91546.0,0.02329]
[1763547536616,0.40446192,91547.0,91546.0,0.04523]
[1763547537523,0.40446192,91547.0,91546.0,0.1545551]
[1763547537728,0.40446192,91547.0,91546.0,0.1326151]
[1763547538124,0.40446192,91547.0,91546.0,0.1545551]
[1763547538621,0.40446192,91547.0,91546.0,0.1326151]
[1763547538820,0.40446192,91547.0,91546.0,0.1545551]
[1763547539020,0.40446192,91547.0,91546.0,0.1326151]
[1763547539730,0.40446192,91547.0,91546.0,0.1545551]
[1763547540724,0.51378582,91547.0,91546.0,0.1545551]
[1763547541233,0.51378582,91547.0,91546.0,0.1326151]
[1763547541420,0.51378582,91547.0,91546.0,0.002]
[1763547541628,0.53839232,91547.0,91546.0,0.002]
[1763547541928,0.53839232,91547.0,91520.0,0.24401731]
[1763547541929,0.04418,91527.0,91526.0,0.15422215]
[1763547542322,0.0007285,91530.0,91529.0,0.1539454]
[1763547542729,0.0232485,91530.0,91529.0,0.1539454]
[1763547543124,0.0007285,91530.0,91529.0,0.1539454]
[1763547543425,0.0232485,91530.0,91529.0,0.1539454]
[1763547543733,0.0232485,91530.0,91529.0,0.1559454]
[1763547543935,0.0232485,91530.0,91529.0,0.1569454]
[1763547543936,0.0449085,91530.0,91529.0,0.1569454]
[1763547545224,0.06958116,91530.0,91529.0,0.1569454]
[1763547545625,0.0449085,91530.0,91529.0,0.1569454]
[1763547546228,0.06959187,91530.0,91529.0,0.1569454]
[1763547549429,0.06959187,91530.0,91529.0,0.0476]
[1763547550336,0.06959187,91530.0,91526.0,0.00027315]
[1763547550337,0.04418,91527.0,91526.0,0.00027315]
[1763547550529,0.04418,91519.0,91518.0,0.1539583]
[1763547550728,0.06886337,91519.0,91518.0,0.1539583]
[1763547551230,0.06886337,91519.0,91518.0,0.1539585]
[1763547551437,0.06886337,91519.0,91518.0,0.0446]
[1763547551636,0.17822067,91519.0,91518.0,0.0446]
[1763547551833,0.17822067,91519.0,91518.0,0.0456]
[1763547552536,0.06886337,91519.0,91518.0,0.0456]
[1763547553033,0.04418,91506.0,91505.0,8.57e-05]
[1763547553238,0.40498,91506.0,91505.0,0.0446857]
[1763547558544,0.4293591,91506.0,91505.0,8.57e-05]
[1763547558841,0.42946734,91506.0,91505.0,8.57e-05]
[1763547559438,0.04418,91491.0,91490.0,0.0446]
[1763547559639,0.04418,91491.0,91490.0,0.15619003]
[1763547560034,0.04418,91491.0,91490.0,0.17018003]
[1763547560236,0.40498,91495.0,91494.0,0.1539872]
[1763547561242,0.3608,91495.0,91493.0,0.1539878]
[1763547561548,0.04418,91494.0,91493.0,0.1539878]
[1763547562440,0.04418,91494.0,91493.0,0.1093878]
[1763547562943,0.04418,91491.0,91490.0,0.15618923]
[1763547563137,0.04418,91491.0,91490.0,0.13289923]
[1763547563651,0.04418,91491.0,91490.0,0.15618923]
[1763547564448,0.04418,91491.0,91490.0,0.15605923]
[1763547564840,0.04418,91491.0,91490.0,0.13289923]
[1763547565236,0.04418,91491.0,91490.0,0.15605923]
[1763547565940,0.04418,91491.0,91490.0,0.1307012]
[1763547566138,0.04317,91488.0,91487.0,0.02297]
[1763547566448,0.04317,91488.0,91487.0,0.1323656]
[1763547566643,0.04317,91488.0,91487.0,0.1555256]
[1763547566844,0.04317,91488.0,91487.0,0.1323656]
[1763547567152,0.1525656,91487.0,91486.0,0.00027327]
[1763547567345,0.1094021,91482.0,91471.0,0.1555439]
[1763547567550,0.40397,91472.0,91471.0,0.04613]
[1763547569248,0.04317,91471.0,91470.0,0.00219803]
[1763547569547,0.04317,91467.0,91466.0,0.10942]
[1763547569753,0.04317,91464.0,91463.0,0.1094236]
[1763547570047,0.04330108,91464.0,91463.0,0.02297]
[1763547570241,0.04330108,91464.0,91462.0,0.1094246]
[1763547570242,0.04317,91463.0,91462.0,0.1555546]
[1763547570441,0.04317,91463.0,91462.0,0.1323946]
[1763547570652,0.04317,91463.0,91462.0,0.1555546]
[1763547570952,0.00013108,91464.0,91463.0,0.04613]
[1763547571946,0.04361108,91464.0,91463.0,0.04613]
[1763547572160,0.40441108,91464.0,91463.0,0.02297]
[1763547572349,0.04348,91461.0,91460.0,0.00219803]
[1763547573143,0.04348,91461.0,91460.0,0.02342803]
[1763547573348,0.04348,91461.0,91460.0,0.04517803]
[1763547573549,0.1529067,91461.0,91460.0,0.04517803]
[1763547573858,0.1529067,91461.0,91455.0,0.10951846]
[1763547573859,0.1655327,91456.0,91455.0,0.02131526]
[1763547574054,0.5263327,91456.0,91455.0,8.526e-05]
[1763547574352,0.4169,91456.0,91455.0,8.526e-05]
[1763547575953,0.01262,91448.0,91446.0,0.1524241]
[1763547576153,0.0007285,91450.0,91449.0,0.04298]
[1763547576458,0.0228785,91450.0,91449.0,0.04298]
[1763547577155,0.0442085,91450.0,91449.0,0.04298]
[1763547577550,0.0007285,91450.0,91449.0,0.04298]
[1763547579854,0.0228785,91450.0,91449.0,0.04298]
[1763547580057,0.0442085,91450.0,91449.0,0.04298]
[1763547580655,0.02133,91449.0,91446.0,0.1094437]
[1763547580853,0.40428,91447.0,91446.0,0.1306737]
[1763547581161,0.40428,91447.0,91446.0,0.1524237]
[1763547582259,0.3608,91447.0,91446.0,0.1524237]
[1763547583050,0.0007285,91450.0,91449.0,0.1524211]
[1763547586153,0.3608,91455.0,91454.0,0.1524151]
[1763547586455,0.00013108,91464.0,91463.0,0.1524043]
[1763547586660,0.3608,91474.0,91473.0,0.1523924]
[1763547587758,0.36088283,91474.0,91473.0,0.1523924]
[1763547588259,0.00108283,91474.0,91473.0,0.1523924]
[1763547589157,0.36096399,91483.0,91482.0,0.1523816]
[1763547590157,0.36103296,91483.0,91482.0,0.1523816]
[1763547590363,0.36203296,91483.0,91482.0,0.1523816]
[1763547590863,0.00123296,91483.0,91482.0,0.1523816]
[1763547591266,0.04471296,91483.0,91482.0,0.1094016]
[1763547591463,0.04348,91481.0,91480.0,0.00219803]
[1763547591856,0.1528874,91478.0,91477.0,0.109407]
[1763547592165,0.04348,91475.0,91474.0,0.04298]
[1763547592466,0.40428,91475.0,91474.0,0.1523912]
[1763547593060,0.40428,91475.0,91474.0,0.04298]
[1763547593260,0.40428,91475.0,91470.0,0.00219803]
[1763547593261,0.04348,91471.0,91470.0,0.00219803]
[1763547593655,0.06773477,91471.0,91470.0,0.00219803]
[1763547594756,0.04348,91468.0,91467.0,0.109419]
[1763547595363,0.04348,91465.0,91464.0,0.02139399]
[1763547595665,0.40428,91465.0,91464.0,0.02139399]
[1763547596257,0.40428,91465.0,91464.0,0.04314399]
[1763547596867,0.38295,91465.0,91464.0,0.05693399]
[1763547597463,0.40428,91465.0,91464.0,0.04314399]
[1763547597677,0.38295,91465.0,91464.0,0.05693399]
[1763547600263,0.38295,91465.0,91464.0,0.04314399]
[1763547600264,0.40428,91465.0,91464.0,0.04314399]
[1763547601078,0.40428,91465.0,91464.0,0.00016399]
[1763547601761,0.40428,91465.0,91464.0,0.05605399]
[1763547601762,0.3608,91465.0,91464.0,0.05605399]
[1763547603361,0.4331,91482.0,91473.0,0.1520624]
[1763547603362,0.40458,91474.0,91473.0,0.1520624]
[1763547603568,0.3608,91474.0,91473.0,0.1520624]
[1763547603771,0.47688,91482.0,91481.0,0.04265]
[1763547604069,0.50116554,91482.0,91481.0,0.04265]
[1763547606167,0.1531828,91481.0,91480.0,0.00219803]
[1763547606370,0.1531828,91481.0,91465.0,0.5128719]
[1763547606371,0.04378,91466.0,91465.0,0.5128719]
[1763547606569,0.0007285,91470.0,91469.0,0.1094171]
[1763547606873,0.0007285,91470.0,91469.0,0.1520671]
[1763547607374,0.40558,91482.0,91481.0,0.1309928]
[1763547607571,0.42986596,91482.0,91481.0,0.1309928]
[1763547608658,0.42886596,91482.0,91481.0,0.1520528]
[1763547608873,0.42886596,91482.0,91481.0,0.04265]
[1763547608874,0.53826756,91482.0,91481.0,0.04265]
[1763547609075,0.42886596,91482.0,91481.0,0.04265]
[1763547609468,0.42986596,91482.0,91481.0,0.02159]
[1763547610672,0.04378,91481.0,91480.0,0.11160103]
[1763547610870,0.06806596,91481.0,91480.0,0.11160103]
[1763547611263,0.06806596,91481.0,91480.0,0.13319103]
[1763547611663,0.06806596,91481.0,91480.0,0.15425103]
[1763547612070,0.06906596,91481.0,91480.0,0.15425103]
[1763547612976,0.04057648,91481.0,91480.0,0.15425103]
[1763547613772,0.06481363,91481.0,91480.0,0.15425103]
[1763547615772,0.06481363,91481.0,91480.0,0.16785103]
[1763547615971,0.02523715,91481.0,91480.0,0.16785103]
[1763547616177,0.04729715,91481.0,91480.0,0.16785103]
[1763547616572,0.001,91481.0,91480.0,0.16785103]
[1763547617081,0.001,91481.0,91480.0,0.22646991]
[1763547617886,0.001,91481.0,91480.0,0.16785103]
[1763547618878,0.3608,91506.0,91480.0,0.16785103]
[1763547618879,0.38286,91506.0,91505.0,0.1520241]
[1763547619077,0.42871973,91506.0,91505.0,0.1520241]
[1763547620184,0.40458,91506.0,91505.0,0.1520241]
[1763547620881,0.37832332,91506.0,91505.0,0.1520241]
[1763547622085,0.37932332,91506.0,91505.0,0.1520241]
[1763547622884,0.37932332,91506.0,91500.0,0.00219803]
[1763547622885,0.04378,91501.0,91500.0,0.04484803]
[1763547623587,0.04378,91501.0,91500.0,0.00219803]
[1763547623787,0.04378,91497.0,91496.0,0.00016399]
[1763547624079,0.40458,91497.0,91496.0,0.00016399]
[1763547624489,0.40458,91497.0,91496.0,0.02175399]
[1763547624782,0.40458,91497.0,91496.0,0.04459399]
[1763547626390,0.40458,91497.0,91496.0,0.05723399]
[1763547628478,0.35143479,91497.0,91496.0,0.05723399]
[1763547628676,0.36096399,91515.0,91514.0,0.1537933]
[1763547628876,0.33470989,91524.0,91523.0,0.1537826]
[1763547629383,0.35584989,91524.0,91523.0,0.1537826]
[1763547629588,0.37864989,91524.0,91523.0,0.1537826]
[1763547630180,0.04394,91522.0,91521.0,0.109354]
[1763547630488,0.05749,91521.0,91520.0,0.00219803]
[1763547630887,0.04394,91515.0,91514.0,0.00016389]
[1763547631085,0.40474,91515.0,91514.0,0.00016389]
[1763547633188,0.40474,91515.0,91514.0,0.02259389]
[1763547633979,0.40474,91515.0,91514.0,0.00016389]
[1763547636293,0.40474,91515.0,91514.0,0.04473389]
[1763547636591,0.40474,91515.0,91514.0,0.00016389]
[1763547638480,0.4286282,91515.0,91514.0,0.00016389]
[1763547639081,0.4286282,91515.0,91514.0,3.89e-06]
[1763547639292,0.04423,91499.0,91498.0,0.1539515]
[1763547640395,0.0007285,91500.0,91499.0,0.04457]
[1763547640689,0.0449585,91500.0,91499.0,0.04457]
[1763547640996,0.04423,91499.0,91498.0,0.001]
[1763547641682,0.04423,91497.0,91496.0,0.02243]
[1763547641886,0.0449585,91500.0,91499.0,0.001]
[1763547642586,0.0449585,91500.0,91499.0,0.02343]
[1763547642784,0.0449585,91500.0,91499.0,0.001]
[1763547643395,0.04423,91495.0,91494.0,0.1318164]
[1763547644089,0.04423,91491.0,91490.0,0.02462803]
[1763547644396,0.04423,91491.0,91490.0,0.04676803]
[1763547646691,0.04423,91491.0,91490.0,0.00219803]
[1763547647090,0.04423,91491.0,91490.0,0.02462803]
[1763547648290,0.04423,91491.0,91490.0,0.04676803]
[1763547650198,0.04423,91491.0,91490.0,0.00219803]
[1763547650790,0.04423,91491.0,91489.0,0.00016389]
[1763547650791,0.1676705,91490.0,91489.0,0.00016389]
[1763547650997,0.55240333,91490.0,91489.0,0.00016389]
[1763547651202,0.04423,91476.0,91475.0,0.1094093]
[1763547651898,0.04423,91476.0,91475.0,0.1539793]
[1763547653199,0.04423,91476.0,91475.0,0.04457]
[1763547653397,0.04423,91475.0,91474.0,0.00013681]
[1763547653592,0.04323,91475.0,91474.0,0.00013681]
[1763547654709,0.04323,91475.0,91474.0,0.00113681]
[1763547655599,0.04323,91475.0,91447.0,0.05880213]
[1763547655600,0.04423,91467.0,91447.0,0.05880213]
[1763547655804,0.04423,91453.0,91452.0,0.40537]
[1763547656805,0.04423,91453.0,91452.0,0.5148075]
[1763547656999,0.40503,91459.0,91458.0,0.1540003]
[1763547660893,0.40503,91459.0,91458.0,0.04457]
[1763547661095,0.04423,91453.0,91452.0,0.3608]
[1763547661301,0.04423,91435.0,91434.0,0.38323]
[1763547661496,0.04423,91435.0,91430.0,0.1094632]
[1763547661497,0.04447,91431.0,91430.0,0.00219803]
[1763547661702,0.04447,91431.0,91430.0,0.02473803]
[1763547662007,0.04447,91431.0,91430.0,0.04777803]
[1763547663807,0.1539327,91431.0,91430.0,0.04777803]
[1763547664009,0.1539327,91431.0,91430.0,0.02473803]
[1763547665411,0.04447,91431.0,91430.0,0.04777803]
[1763547665610,0.04447,91429.0,91425.0,0.1094694]
[1763547665911,0.04447,91426.0,91425.0,0.1320094]
[1763547666309,0.02191,91426.0,91425.0,0.1550494]
[1763547666806,0.04447,91426.0,91425.0,0.1550494]
[1763547670618,0.04447,91426.0,91425.0,0.04558]
[1763547674515,0.00013645,91428.0,91423.0,0.3608]
[1763547674516,0.04447,91424.0,91423.0,0.3608]
[1763547675406,0.1539446,91421.0,91420.0,0.02473803]
[1763547676711,0.1539446,91421.0,91416.0,0.00012806]
[1763547676712,0.1539494,91417.0,91416.0,0.00012806]
[1763547678419,0.1539494,91417.0,91416.0,0.02266806]
[1763547678813,0.1549494,91417.0,91416.0,0.00012806]
[1763547679214,0.04547,91417.0,91416.0,0.04570806]
[1763547680412,0.001,91417.0,91416.0,0.04570806]
[1763547681615,0.0007285,91420.0,91419.0,0.04558]
[1763547681818,0.0226385,91420.0,91419.0,0.04558]
[1763547684321,0.02207408,91426.0,91425.0,0.1550498]
[1763547684623,0.00016408,91426.0,91425.0,0.1550498]
[1763547685920,0.00116408,91426.0,91425.0,0.1550498]
[1763547690520,5.3e-07,91428.0,91427.0,0.05851]
[1763547690723,0.3608,91443.0,91442.0,0.04523]
[1763547690915,0.02396271,91443.0,91442.0,0.2601995]
[1763547691121,0.3608,91453.0,91442.0,0.2601995]
[1763547691122,0.3608,91453.0,91452.0,0.1546675]
[1763547691415,0.42753933,91453.0,91452.0,0.1546675]
[1763547691626,0.53697563,91453.0,91452.0,0.04523]
[1763547692726,0.42753933,91453.0,91452.0,0.04523]
[1763547693121,0.43053933,91453.0,91452.0,0.04523]
[1763547695320,0.40891933,91453.0,91452.0,0.04523]
[1763547695918,0.04438,91451.0,91450.0,0.00219803]
[1763547696120,0.04438,91444.0,91443.0,0.13084238]
[1763547696326,0.04438,91444.0,91443.0,0.15196238]
[1763547696528,0.04438,91444.0,91443.0,0.04251408]
[1763547697027,0.40518,91444.0,91443.0,0.04251408]
[1763547698336,0.40618,91444.0,91443.0,0.04251408]
[1763547698836,0.40618,91444.0,91443.0,0.02139408]
[1763547699032,0.40718,91444.0,91443.0,0.02139408]
[1763547699838,0.40718,91444.0,91443.0,0.04251408]
[1763547703731,0.40718,91444.0,91443.0,0.02139408]
[1763547703932,0.40718,91444.0,91443.0,0.04251408]
[1763547704133,0.40718,91444.0,91443.0,0.00016408]
[1763547705632,0.40718,91444.0,91443.0,0.02139408]
[1763547705837,0.40718,91444.0,91443.0,0.04251408]
[1763547710340,0.002,91444.0,91443.0,0.04251408]
[1763547710733,0.002,91444.0,91443.0,0.40331408]
[1763547710935,0.0723,91457.0,91456.0,0.04235]
[1763547711233,0.0723,91457.0,91456.0,0.1517827]
[1763547711940,0.40518,91461.0,91460.0,0.151778]
[1763547712142,0.40518,91461.0,91460.0,0.15397603]
[1763547714040,0.40618,91461.0,91460.0,0.15397603]
[1763547714234,0.37991106,91461.0,91460.0,0.15397603]
[1763547714439,0.37891106,91461.0,91460.0,0.15397603]
[1763547716036,0.35572106,91461.0,91460.0,0.15397603]
[1763547716443,0.37891106,91461.0,91460.0,0.15397603]
[1763547720035,0.37891106,91461.0,91460.0,0.00219803]
[1763547720241,0.37891106,91461.0,91460.0,0.11162603]
[1763547720445,0.04438,91453.0,91451.0,0.10531683]
[1763547720747,0.05751,91452.0,91451.0,0.1094385]
[1763547721239,0.05751,91452.0,91451.0,0.1306685]
[1763547721638,0.04438,91452.0,91451.0,0.1517885]
[1763547722648,0.04438,91452.0,91451.0,0.1527885]
[1763547722944,0.3608,91453.0,91452.0,0.04449]
[1763547723137,0.48985786,91461.0,91460.0,0.132568]
[1763547723340,0.48985786,91461.0,91460.0,0.00219803]
[1763547723540,0.48985786,91461.0,91448.0,0.10544]
[1763547723541,0.0459,91449.0,91448.0,0.2593723]
[1763547723835,0.0459,91449.0,91448.0,0.1094423]
[1763547724041,0.0007285,91450.0,91439.0,0.10531683]
[1763547724042,0.05897,91448.0,91447.0,0.109443]
[1763547724545,0.05897,91448.0,91447.0,0.153933]
[1763547724746,0.0459,91448.0,91447.0,0.153933]
[1763547726352,0.0459,91448.0,91443.0,0.00016408]
[1763547726353,0.0459,91444.0,91443.0,0.00016408]
[1763547726545,0.0459,91444.0,91443.0,0.04465408]
[1763547727345,0.0459,91444.0,91443.0,0.04565408]
[1763547728245,0.0459,91444.0,91443.0,0.00116408]